bitfinex/quotes_ETHUSD_20251221
["timestamp","ask_amount","ask_price","bid_price","bid_amount"]
[1766353987989,1.3438,2975.0,2974.5,1.5871]
[1766353989169,4.70523612,2975.0,2974.5,1.932]
[1766353989374,3.80111858,2975.2,2974.8,1.1451]
[1766353989706,3.80111858,2975.2,2974.9,0.3449]
[1766353989981,3.80111858,2975.2,2974.8,1.1451]
[1766353990297,3.36111858,2975.2,2974.8,1.1451]
[1766353990584,3.36111858,2975.2,2974.8,1.49]
[1766353993389,4.70911858,2975.2,2974.6,1.49]
[1766353993576,4.70911858,2975.2,2974.6,1.70472788]
[1766353995858,4.70911858,2975.2,2974.7,1.49]
[1766353996962,5.14911858,2975.2,2974.7,1.49]
[1766353999181,5.15011858,2975.2,2974.7,1.49]
[1766353999487,3.80211858,2975.2,2974.6,0.21672788]
[1766353999688,4.71314507,2975.1,2974.6,0.002]
[1766353999892,4.71314507,2975.1,2974.6,1.492]
[1766354000969,3.80218445,2975.2,2974.7,1.49]
[1766354001185,0.441,2975.2,2974.7,1.49]
[1766354001395,4.15253955,2975.2,2974.7,1.49]
[1766354001576,8.5163791,2975.2,2974.7,1.49]
[1766354002365,5.15523955,2975.2,2974.7,1.49]
[1766354002999,7.1632791,2975.2,2974.6,0.002]
[1766354003292,1.3537,2975.1,2974.6,0.002]
[1766354003598,3.36134453,2975.0,2974.6,0.002]
[1766354006305,4.72604453,2975.0,2974.6,0.002]
[1766354007198,3.361261,2975.1,2974.6,0.002]
[1766354007409,4.727061,2975.1,2974.6,0.002]
[1766354007617,4.728061,2975.1,2974.6,0.002]
[1766354008784,4.728061,2975.1,2974.6,1.5061]
[1766354017443,8.089322,2975.1,2974.6,1.5061]
[1766354018421,4.728061,2975.1,2974.6,1.5061]
[1766354019639,3.362261,2975.1,2974.7,1.4834]
[1766354020138,0.001,2975.1,2974.6,0.002]
[1766354020337,0.001,2975.2,2974.9,1.4834]
[1766354025748,0.001,2975.2,2974.6,0.002]
[1766354026367,0.001,2975.2,2974.9,1.11]
[1766354026537,0.001,2975.2,2975.0,0.3734]
[1766354026854,0.001,2975.2,2975.0,1.4834]
[1766354030740,0.001,2975.2,2974.7,1.4834]
[1766354032229,0.001,2975.2,2974.9,1.11]
[1766354033564,0.001,2975.2,2974.9,1.4834]
[1766354033751,0.001,2975.2,2975.0,1.11]
[1766354034055,0.001,2975.2,2975.0,1.4834]
[1766354039662,0.001,2975.2,2974.6,0.002]
[1766354040050,0.3447,2975.2,2974.6,0.29781629]
[1766354040244,0.001,2975.2,2974.8,1.4834]
[1766354040445,0.001,2975.2,2974.9,1.11]
[1766354040644,0.001,2975.2,2974.9,1.4834]
[1766354042266,0.001,2975.2,2974.6,0.002]
[1766354042456,0.001,2975.2,2974.6,1.4854]
[1766354042639,0.001,2975.2,2974.6,1.78121629]
[1766354042840,0.001,2975.2,2974.7,1.4834]
[1766354043370,0.001,2975.2,2974.9,0.002]
[1766354046076,0.001,2975.2,2974.6,0.002]
[1766354046283,3.36157052,2974.8,2974.5,1e-08]
[1766354046577,4.75317052,2974.8,2974.5,1e-08]
[1766354047291,8.11474104,2974.8,2974.5,1e-08]
[1766354047758,8.11474104,2974.8,2974.0,0.002]
[1766354047759,4.21704462,2974.8,2974.0,0.002]
[1766354048073,0.3684,2974.6,2974.0,0.002]
[1766354048275,1.3923,2974.4,2974.0,0.002]
[1766354048900,3.36213562,2974.3,2974.0,0.002]
[1766354049084,4.75443562,2974.3,2974.0,0.002]
[1766354050788,3.36190956,2974.5,2974.0,0.002]
[1766354050956,4.21758958,2974.5,2974.0,0.002]
[1766354051156,4.21758958,2974.5,2974.0,1.4363]
[1766354051157,4.65758958,2974.5,2974.0,1.4363]
[1766354051370,4.65758958,2974.5,2974.1,1.0731]
[1766354051569,4.65758958,2974.5,2974.1,1.4343]
[1766354053957,4.21758958,2974.5,2974.1,1.4343]
[1766354054158,3.36190956,2974.5,2974.0,0.002]
[1766354054460,8.55811912,2974.5,2974.0,0.002]
[1766354054657,7.16381912,2974.5,2974.0,0.002]
[1766354054965,1.3943,2974.4,2974.0,0.002]
[1766354055994,4.75641218,2974.4,2974.0,0.002]
[1766354059186,1.3943,2974.4,2974.0,0.002]
[1766354059388,4.75635842,2974.4,2974.0,0.002]
[1766354061091,8.97424376,2974.4,2974.0,0.002]
[1766354062385,7.94834376,2974.4,2974.0,0.002]
[1766354065771,1.0293,2974.3,2973.3,0.03563266]
[1766354065972,1.0293,2974.3,2973.5,1.4343]
[1766354065973,0.3684,2974.2,2973.5,1.4343]
[1766354066177,1.398,2974.2,2973.5,1.4343]
[1766354066697,0.3684,2974.2,2973.6,1.5012]
[1766354066874,0.8121,2974.3,2973.6,0.3452]
[1766354067079,1.842,2974.3,2973.7,1.156]
[1766354067577,0.3721,2974.2,2973.7,1.156]
[1766354067784,3.36236172,2974.1,2973.6,0.3452]
[1766354067963,3.73446172,2974.1,2973.6,0.3452]
[1766354068170,1.86594323,2974.4,2973.3,0.002]
[1766354068408,0.8121,2974.4,2973.6,1.156]
[1766354068607,0.3721,2974.4,2973.8,1.156]
[1766354068937,1.0685,2974.2,2973.5,0.3452]
[1766354069115,1.0685,2974.0,2973.5,0.3452]
[1766354069312,1.0685,2974.0,2973.6,0.002]
[1766354069901,3.36258784,2973.9,2973.6,0.002]
[1766354070900,3.36236172,2974.1,2973.7,1.5012]
[1766354071107,0.3452,2974.4,2973.6,0.002]
[1766354071108,1.4137,2974.4,2973.6,0.002]
[1766354071281,3.36202967,2974.4,2973.6,0.002]
[1766354071603,3.36202967,2974.4,2973.9,1.156]
[1766354071784,3.36202967,2974.4,2974.0,0.3452]
[1766354073504,1.0695,2974.5,2973.6,1.01200409]
[1766354073505,0.001,2974.5,2974.3,0.3452]
[1766354073679,0.001,2974.5,2974.4,0.3452]
[1766354073872,1.0685,2974.9,2974.4,0.3452]
[1766354074074,0.001,2975.2,2974.7,0.3452]
[1766354074075,3.36123155,2975.1,2974.7,0.3452]
[1766354074276,3.36123155,2975.1,2974.8,0.3452]
[1766354076814,3.36223155,2975.1,2974.8,0.3452]
[1766354077699,0.001,2975.1,2974.8,0.3452]
[1766354081718,0.001,2975.1,2974.7,1.156]
[1766354081937,1.0931,2975.1,2974.6,0.3589]
[1766354082089,1.0931,2975.1,2974.6,1.5188]
[1766354084210,8.67803016,2975.1,2974.4,1.00977631]
[1766354084420,1.8984,2975.0,2974.2,0.441]
[1766354084606,0.8063,2975.0,2974.3,1.5188]
[1766354084916,1.0921,2974.9,2974.3,1.5188]
[1766354085123,1.0921,2974.9,2974.4,0.3589]
[1766354085293,1.0921,2974.9,2974.4,1.5188]
[1766354085495,3.36157052,2974.8,2974.5,0.002]
[1766354087423,4.45367052,2974.8,2974.5,0.002]
[1766354088192,4.45367052,2974.8,2974.0,2.53064089]
[1766354088193,4.63369185,2974.6,2974.0,2.53064089]
[1766354088396,1.0921,2974.4,2974.0,0.3609]
[1766354089725,4.45412303,2974.4,2974.0,0.3609]
[1766354093001,1.0921,2974.4,2974.0,0.3609]
[1766354098436,4.45413712,2974.4,2974.0,0.002]
[1766354098633,3.36203712,2974.4,2974.0,0.002]
[1766354098834,3.36203712,2974.4,2974.0,1.5208]
[1766354099336,3.36134453,2975.0,2974.1,1.1599]
[1766354099526,3.80134453,2975.0,2974.6,0.3589]
[1766354100333,8.43503638,2975.0,2974.6,0.3589]
[1766354100504,4.63369185,2974.8,2974.2,1.1599]
[1766354100708,1.0921,2974.6,2974.1,0.441]
[1766354100909,1.4584,2974.6,2974.1,0.441]
[1766354101138,1.0921,2974.6,2974.1,1.9598]
[1766354101702,0.001,2974.5,2974.1,1.9598]
[1766354104138,0.001,2974.5,2974.1,1.5188]
[1766354104541,0.001,2974.5,2974.1,1.1599]
[1766354104741,0.001,2974.5,2974.2,1.5188]
[1766354104946,7.99521834,2974.9,2974.2,1.1599]
[1766354105245,0.44,2974.8,2974.4,1.1599]
[1766354105448,0.44,2974.8,2974.5,0.3623]
[1766354106730,0.44,2974.9,2974.4,1.5222]
[1766354107039,1.52606927,2974.9,2974.4,1.5222]
[1766354107649,4.88753569,2974.9,2974.4,1.5222]
[1766354108747,0.44,2974.9,2974.1,1.4893]
[1766354109047,0.001,2974.8,2974.3,0.3623]
[1766354109239,0.001,2974.8,2974.1,1.00984089]
[1766354109240,0.001,2974.8,2974.5,0.3623]
[1766354109418,0.001,2974.8,2974.5,1.127]
[1766354109620,0.001,2975.1,2974.3,7.99579401]
[1766354109953,0.001,2975.2,2974.5,1.4893]
[1766354110247,0.001,2975.2,2974.8,0.3623]
[1766354110450,0.001,2975.2,2974.9,1.4893]
[1766354111048,0.001,2975.2,2974.5,0.44]
[1766354111720,0.001,2975.2,2974.6,1.4893]
[1766354112118,0.001,2975.2,2974.6,0.27729794]
[1766354112344,0.001,2975.2,2974.7,1.4893]
[1766354112549,0.001,2975.2,2974.8,0.3623]
[1766354112750,0.001,2975.2,2974.8,1.4893]
[1766354113139,0.001,2975.2,2974.8,1.127]
[1766354113452,0.001,2975.2,2974.9,1.4893]
[1766354113658,0.001,2975.3,2975.1,1.4893]
[1766354113970,8.43536011,2975.6,2975.1,1.4893]
[1766354114248,7.99536011,2975.6,2975.1,1.4893]
[1766354114456,7.43536011,2975.6,2975.1,1.4893]
[1766354114757,8.62496011,2975.6,2975.1,1.4893]
[1766354115260,5.26429185,2975.6,2975.1,1.4893]
[1766354115655,0.001,2975.7,2975.2,1.4893]
[1766354115853,0.441,2975.7,2975.3,0.3623]
[1766354116053,0.001,2975.7,2975.3,1.4893]
[1766354116352,0.001,2975.7,2975.0,3.36127874]
[1766354116655,0.001,2975.7,2975.1,0.33612787]
[1766354116852,0.001,2975.7,2975.4,1.127]
[1766354117054,0.001,2975.7,2975.3,0.3623]
[1766354118354,0.001,2975.7,2975.4,1.4893]
[1766354118658,0.001,2975.7,2974.9,1.00956903]
[1766354118659,0.001,2975.7,2975.2,1.127]
[1766354118855,1.5633,2975.7,2975.2,1.4893]
[1766354119159,1.1906,2975.7,2975.2,1.4893]
[1766354119527,4.63369185,2975.6,2975.2,1.4893]
[1766354119821,5.76539185,2975.6,2975.0,1.5273]
[1766354120049,5.76539185,2975.6,2975.0,1.8250869]
[1766354120264,1.1317,2975.5,2975.0,1.8250869]
[1766354120425,0.3381,2975.5,2975.0,0.2977869]
[1766354120627,4.63369185,2975.2,2974.6,1.80459794]
[1766354120826,1.4698,2975.1,2974.6,1.5273]
[1766354122530,0.44,2975.3,2974.8,1.1803]
[1766354122755,0.44,2975.3,2974.9,0.347]
[1766354126070,0.44,2975.3,2974.9,1.5273]
[1766354127174,1.9108,2975.5,2974.9,1.5273]
[1766354129444,1.9108,2975.5,2975.0,0.347]
[1766354130969,1.1317,2975.3,2974.7,1.00961999]
[1766354131294,4.63212682,2975.4,2974.7,0.347]
[1766354131295,1.4698,2975.2,2974.7,0.347]
[1766354131459,7.9930448,2975.4,2974.7,0.347]
[1766354131639,9.1247448,2975.4,2974.7,0.347]
[1766354131836,9.4850448,2975.4,2974.7,0.347]
[1766354132039,1.1664,2975.3,2974.7,0.347]
[1766354132238,1.5267,2975.3,2974.7,0.347]
[1766354132467,1.5267,2975.3,2974.7,1.4939]
[1766354133346,5.79852682,2975.2,2974.7,1.4939]
[1766354133644,6.15882682,2975.2,2974.7,1.4939]
[1766354134342,1.5267,2975.2,2974.7,1.4939]
[1766354139263,1.5267,2975.2,2974.7,1.5152]
[1766354139478,1.1664,2975.2,2974.7,1.5654]
[1766354139678,4.97162682,2975.4,2974.6,0.002]
[1766354139878,6.15852682,2975.4,2974.7,1.1971]
[1766354140198,6.15852682,2975.4,2974.8,1.5654]
[1766354140584,0.001,2975.5,2975.0,1.1971]
[1766354140900,0.001,2975.5,2975.2,1.5654]
[1766354141405,1.1869,2975.4,2974.6,2.57708455]
[1766354141575,5.01348904,2975.5,2974.7,0.3683]
[1766354141576,1.1869,2975.2,2974.7,0.3683]
[1766354141954,1.1869,2975.2,2974.7,1.5654]
[1766354148504,1.5264,2975.2,2974.7,1.5654]
[1766354148816,1.1869,2975.1,2974.7,1.5654]
[1766354148974,1.1869,2975.1,2974.7,1.86720846]
[1766354149605,0.3395,2975.2,2974.7,1.86720846]
[1766354152324,1.5264,2975.2,2974.7,1.86720846]
[1766354152884,4.88755702,2975.2,2974.7,1.5654]
[1766354153215,1.1869,2975.0,2974.6,0.002]
[1766354153511,1.1869,2974.8,2974.6,0.002]
[1766354153808,0.3395,2974.7,2974.4,0.002]
[1766354154044,1.6269,2974.8,2974.4,0.002]
[1766354154181,0.3395,2974.6,2973.9,5.3688786]
[1766354154502,1.1869,2974.5,2974.0,1.5674]
[1766354154701,1.1869,2974.5,2974.1,1.5654]
[1766354155268,0.3395,2974.6,2974.1,1.5654]
[1766354156999,1.1869,2974.7,2974.1,1.1971]
[1766354157204,1.1869,2974.7,2974.1,1.5654]
[1766354158412,1.5264,2974.7,2974.1,1.5654]
[1766354159496,1.5264,2974.7,2974.1,1.1971]
[1766354159697,1.5264,2974.7,2974.2,0.3683]
[1766354160011,1.5264,2974.6,2974.1,1.1971]
[1766354160198,1.1869,2974.5,2974.0,0.3703]
[1766354160515,1.1869,2974.5,2974.0,1.5674]
[1766354160811,1.1869,2974.5,2974.0,1.1991]
[1766354161109,2.34654676,2974.8,2974.2,1.1971]
[1766354161413,2.34654676,2974.8,2974.3,0.3683]
[1766354162710,2.00704676,2974.8,2974.3,0.3683]
[1766354162909,2.00704676,2974.8,2974.3,1.5654]
[1766354164410,1.56704676,2974.8,2974.3,1.5654]
[1766354164613,0.82014676,2974.8,2974.1,1.5654]
[1766354164816,0.44,2974.8,2974.0,3.3644561]
[1766354165109,0.44,2974.8,2974.3,0.002]
[1766354165289,0.44,2974.8,2974.3,1.5661]
[1766354165290,1.5761,2974.8,2974.3,1.5661]
[1766354169586,0.44,2974.8,2974.4,0.353]
[1766354169788,0.44,2975.0,2974.3,0.002]
[1766354169988,1.11223946,2975.0,2974.4,1.5641]
[1766354170216,1.11223946,2975.0,2974.3,0.002]
[1766354170589,2.59653946,2975.0,2974.4,1.5641]
[1766354170787,2.59653946,2975.0,2974.5,0.353]
[1766354170989,2.59653946,2975.0,2974.5,1.5641]
[1766354173928,0.001,2974.8,2974.5,1.5641]
[1766354178636,0.001,2974.8,2974.3,0.002]
[1766354178637,3.36109505,2975.3,2974.6,1.2111]
[1766354178812,3.36109505,2975.3,2974.3,0.443]
[1766354178813,3.80109505,2975.3,2974.4,1.5641]
[1766354179026,5.28539505,2975.3,2974.5,0.20071]
[1766354179321,5.28539505,2975.3,2974.4,1.5641]
[1766354179516,5.28539505,2975.3,2974.3,0.443]
[1766354179720,5.28539505,2975.3,2974.4,1.5641]
[1766354179916,5.28539505,2975.3,2974.3,0.443]
[1766354180123,5.28539505,2975.3,2974.4,1.5641]
[1766354180323,5.28539505,2975.3,2974.6,1.5641]
[1766354180522,5.28539505,2975.3,2974.5,0.20071]
[1766354180839,1.1361,2975.2,2974.7,1.5641]
[1766354181038,1.1361,2975.1,2974.7,1.5641]
[1766354181338,1.1361,2975.1,2974.7,0.353]
[1766354184834,1.1361,2975.1,2974.7,1.5641]
[1766354186238,0.7882,2975.2,2974.7,1.5641]
[1766354187434,0.3482,2975.2,2974.7,1.5641]
[1766354187617,0.7882,2975.2,2974.7,1.5641]
[1766354190735,0.7892,2975.2,2974.7,1.5641]
[1766354192040,4.15032588,2975.2,2974.7,1.5641]
[1766354192834,5.31552588,2975.2,2974.7,1.5641]
[1766354194936,1.5144,2975.2,2974.7,1.5641]
[1766354195111,1.9544,2975.2,2974.7,1.5641]
[1766354197723,0.441,2975.2,2974.3,3.80508741]
[1766354197931,0.441,2975.2,2974.4,0.38050874]
[1766354198135,0.441,2975.2,2974.6,0.3408]
[1766354198443,0.441,2975.2,2974.8,0.3408]
[1766354198746,0.441,2975.2,2974.8,1.5469]
[1766354199140,0.001,2975.2,2974.8,1.5469]
[1766354199343,0.441,2975.2,2974.8,1.5469]
[1766354200048,0.001,2975.2,2974.6,0.002]
[1766354200231,0.001,2975.2,2974.9,1.2061]
[1766354200418,0.001,2975.2,2974.9,1.5469]
[1766354201548,0.001,2975.2,2974.9,1.2061]
[1766354201847,0.001,2975.3,2975.1,0.3408]
[1766354204657,0.441,2975.5,2975.2,1.2061]
[1766354204842,0.441,2975.5,2975.3,1.5469]
[1766354205157,0.001,2975.5,2975.3,1.5469]
[1766354205318,0.001,2975.6,2975.4,0.3408]
[1766354205525,0.001,2975.6,2975.4,1.5469]
[1766354207754,0.001,2975.6,2975.0,1.2061]
[1766354208052,1.2046,2975.6,2975.1,0.3408]
[1766354208257,1.2046,2975.6,2975.1,1.5469]
[1766354208856,1.2046,2975.6,2975.1,1.2061]
[1766354209061,1.2046,2975.6,2974.7,8.4334502]
[1766354209062,1.2046,2975.6,2975.2,1.5469]
[1766354209854,0.001,2975.6,2975.2,1.5469]
[1766354210776,1.2046,2975.6,2975.2,1.5469]
[1766354211077,0.001,2975.6,2975.2,1.5469]
[1766354211277,0.001,2975.6,2975.2,1.2061]
[1766354211477,0.001,2975.6,2975.2,1.5469]
[1766354213573,0.001,2975.6,2975.3,1.5469]
[1766354213776,0.001,2975.6,2974.9,4.63079]
[1766354214095,0.001,2975.6,2975.1,3.36121629]
[1766354214373,0.001,2975.6,2975.2,1.2061]
[1766354214567,0.001,2975.6,2975.4,1.2061]
[1766354214747,0.001,2975.6,2975.4,1.5469]
[1766354216040,0.001,2975.6,2975.5,0.3408]
[1766354216245,0.001,2975.6,2975.5,1.5469]
[1766354218172,0.441,2976.0,2975.4,1.5469]
[1766354218371,0.441,2976.0,2975.6,1.5469]
[1766354218888,0.441,2976.0,2975.6,1.2061]
[1766354219056,0.441,2976.0,2975.7,1.5469]
[1766354220189,0.441,2976.0,2975.8,0.3408]
[1766354220391,0.441,2976.0,2975.7,1.2061]
[1766354220689,0.001,2976.0,2975.7,1.2061]
[1766354220989,0.001,2976.0,2975.7,1.5469]
[1766354222392,1.2046,2976.0,2975.5,1.5469]
[1766354222582,1.2046,2976.0,2975.6,0.3408]
[1766354222783,1.2046,2976.0,2975.6,1.5469]
[1766354223576,1.2046,2976.0,2975.6,0.3408]
[1766354224157,1.2046,2976.0,2975.6,1.5469]
[1766354227964,1.2046,2976.0,2975.3,0.3378]
[1766354228197,1.2046,2976.0,2975.4,0.48344083]
[1766354228505,1.1168,2975.9,2975.4,0.82124083]
[1766354228689,1.1168,2975.6,2975.1,0.002]
[1766354228886,1.4683,2975.5,2975.1,0.002]
[1766354229501,0.3515,2975.7,2975.1,1.4753]
[1766354229669,1.4683,2975.7,2975.1,1.32913]
[1766354229866,0.3515,2975.7,2975.1,1.66693]
[1766354230071,1.1168,2975.6,2975.1,1.4753]
[1766354230901,3.36036909,2975.9,2975.2,1.4733]
[1766354231087,1.9083,2975.9,2975.1,0.002]
[1766354231302,1.1168,2975.8,2975.2,1.1355]
[1766354231494,1.1168,2975.8,2975.3,0.3378]
[1766354232095,1.4683,2975.8,2975.3,0.3378]
[1766354235008,0.3515,2975.8,2975.3,0.3378]
[1766354235204,1.4683,2975.8,2975.3,0.3378]
[1766354236009,1.4693,2975.8,2975.3,0.3378]
[1766354241647,1.4693,2975.8,2975.3,1.4733]
[1766354242278,1.4683,2975.7,2975.1,1.4753]
[1766354242498,0.001,2975.8,2975.3,1.4733]
[1766354242810,0.001,2975.8,2975.1,0.52976835]
[1766354243200,0.001,2975.8,2975.2,1.4733]
[1766354243506,1.1178,2975.8,2975.2,1.4733]
[1766354243812,1.4693,2975.8,2975.2,1.4733]
[1766354243982,1.4693,2975.8,2975.3,0.3378]
[1766354244385,0.001,2975.8,2975.3,1.4733]
[1766354244710,1.1178,2975.8,2975.3,1.4753]
[1766354244914,1.4693,2975.8,2975.3,1.4753]
[1766354246010,1.1168,2975.7,2975.3,1.4753]
[1766354248535,1.1168,2975.7,2975.3,0.002]
[1766354248736,1.4779,2975.7,2975.3,0.002]
[1766354251831,1.1071,2975.6,2975.3,0.002]
[1766354255744,1.2193,2975.8,2975.3,0.002]
[1766354255928,1.2193,2975.8,2975.3,0.3445]
[1766354256111,1.5805,2975.8,2975.3,0.3445]
[1766354258009,0.001,2975.8,2975.3,0.3445]
[1766354258212,1.2193,2975.8,2975.3,1.5417]
[1766354258610,1.5805,2975.8,2975.3,1.5417]
[1766354259523,0.001,2975.8,2975.4,1.1972]
[1766354259733,0.001,2975.8,2975.5,0.3425]
[1766354260849,0.001,2975.8,2975.5,1.5397]
[1766354263129,0.001,2975.8,2975.3,0.002]
[1766354263452,0.001,2975.8,2975.6,1.5397]
[1766354264023,0.001,2976.0,2975.6,0.3425]
[1766354264225,0.001,2976.0,2975.8,1.5397]
[1766354264637,0.001,2976.1,2975.4,3.69718111]
[1766354264836,0.001,2976.2,2975.8,0.3425]
[1766354265036,0.001,2976.2,2975.9,1.5397]
[1766354266055,0.001,2976.2,2975.4,0.33631054]
[1766354266056,1.2193,2976.2,2975.4,0.33631054]
[1766354266256,1.5795,2976.0,2975.3,0.443]
[1766354266550,1.5795,2976.0,2975.5,1.5397]
[1766354266759,1.2183,2976.0,2975.6,0.3425]
[1766354267654,0.001,2976.2,2975.6,0.3425]
[1766354267957,0.001,2976.2,2975.3,0.3445]
[1766354267958,1.2183,2975.8,2975.3,0.3445]
[1766354268126,1.2183,2975.7,2975.3,0.002]
[1766354268325,1.5795,2975.9,2975.3,1.5417]
[1766354268538,1.5795,2975.9,2975.4,1.5397]
[1766354269128,1.2183,2975.8,2975.4,1.5397]
[1766354272762,1.2183,2975.8,2975.4,1.73797]
[1766354273266,0.3612,2975.9,2975.4,1.73797]
[1766354274068,0.3612,2975.9,2975.4,1.39547]
[1766354274247,0.3612,2975.9,2975.4,1.73797]
[1766354274448,0.3612,2975.9,2975.4,1.39547]
[1766354274760,1.2193,2976.0,2975.5,0.3425]
[1766354274944,1.2193,2976.0,2975.5,1.5397]
[1766354275463,0.001,2976.0,2975.4,1.1972]
[1766354275661,0.001,2976.0,2975.6,1.5397]
[1766354276461,0.001,2976.0,2975.4,0.002]
[1766354276462,1.2183,2975.9,2975.4,0.002]
[1766354276765,1.2183,2975.7,2975.4,0.002]
[1766354277667,0.3612,2975.8,2975.4,0.002]
[1766354281443,1.2183,2975.9,2975.5,1.5397]
[1766354281773,0.001,2976.0,2975.5,1.5397]
[1766354281938,0.001,2976.0,2975.4,0.002]
[1766354282147,0.001,2976.0,2975.6,0.3425]
[1766354282445,0.001,2976.0,2975.6,1.5397]
[1766354282970,0.3435,2976.0,2975.6,1.5397]
[1766354286559,1.9319,2976.0,2975.4,1.1846]
[1766354286765,1.9319,2976.0,2975.4,1.5444]
[1766354287072,1.9319,2976.0,2975.5,1.5424]
[1766354288677,1.2191,2976.0,2975.6,0.3598]
[1766354288875,1.2191,2976.0,2975.6,1.5424]
[1766354299254,0.001,2976.0,2975.6,1.5424]
[1766354299458,0.001,2976.0,2975.6,1.1826]
[1766354299686,0.001,2976.0,2975.7,0.3598]
[1766354300559,0.001,2976.0,2975.6,1.1826]
[1766354300973,1.2191,2976.0,2975.5,0.3618]
[1766354301171,1.5894,2976.0,2975.5,0.3618]
[1766354302063,0.001,2976.0,2975.6,1.5424]
[1766354304492,0.001,2976.0,2975.6,0.3598]
[1766354304493,1.5894,2976.0,2975.6,0.3598]
[1766354304665,1.5894,2976.0,2975.5,0.002]
[1766354307699,0.3394,2975.9,2975.5,0.002]
[1766354307894,1.5163,2975.6,2975.3,0.002]
[1766354308489,1.1769,2975.6,2975.3,0.002]
[1766354309398,1.5163,2975.6,2975.3,0.002]
[1766354316099,1.527,2975.9,2975.3,1.5394]
[1766354316283,1.1603,2975.8,2975.3,1.5394]
[1766354318304,1.1603,2975.8,2975.4,1.5374]
[1766354318999,0.001,2976.0,2975.5,0.3472]
[1766354319218,0.43716602,2975.9,2975.5,1.5374]
[1766354319591,1.59746602,2975.9,2975.5,1.5374]
[1766354320301,1.59746602,2975.9,2975.5,0.3472]
[1766354320503,1.96416602,2975.9,2975.5,0.3472]
[1766354321802,1.59746602,2975.9,2975.5,0.3472]
[1766354322001,1.59746602,2975.9,2975.4,1.1902]
[1766354322310,1.1603,2975.8,2975.4,1.1902]
[1766354323018,1.1603,2975.8,2975.4,1.5374]
[1766354323523,1.1603,2975.6,2974.6,0.002]
[1766354323818,1.1603,2975.2,2974.6,1.9804]
[1766354324026,1.1603,2975.2,2974.7,0.3472]
[1766354324525,1.1603,2975.2,2974.7,1.5374]
[1766354324710,1.00964038,2975.5,2974.8,0.3472]
[1766354324914,0.001,2976.1,2975.1,1.5374]
[1766354324915,4.52148778,2976.1,2975.1,1.5374]
[1766354325214,2.17081467,2976.1,2975.2,0.441]
[1766354325413,1.1613,2976.1,2975.2,3.80211679]
[1766354325621,1.1613,2976.1,2975.3,1.5374]
[1766354326125,1.1613,2976.1,2975.2,4.81163146]
[1766354326324,1.1613,2976.1,2975.3,1.5374]
[1766354326325,4.52140882,2976.1,2975.3,1.5374]
[1766354326717,1.1613,2976.0,2975.3,1.5374]
[1766354327026,1.1613,2976.0,2975.5,1.5374]
[1766354327225,1.199,2976.0,2975.5,1.5374]
[1766354328022,1.199,2976.0,2975.5,0.3472]
[1766354328228,1.1603,2975.9,2975.5,0.3472]
[1766354331431,1.1603,2975.9,2975.4,0.002]
[1766354334406,1.1603,2975.9,2975.4,0.3492]
[1766354334735,1.1613,2975.9,2975.4,0.3492]
[1766354336031,0.001,2975.9,2975.4,1.5394]
[1766354336232,0.001,2975.9,2975.4,0.002]
[1766354336434,0.001,2975.9,2975.5,1.5374]
[1766354336843,0.001,2975.9,2975.6,0.3472]
[1766354337338,0.001,2975.9,2975.6,1.5374]
[1766354337634,0.001,2975.9,2975.6,1.1902]
[1766354337839,0.001,2975.9,2975.7,1.5374]
[1766354339033,0.001,2975.9,2975.7,0.3472]
[1766354339534,0.001,2975.9,2975.5,1.5374]
[1766354343149,1.1613,2975.9,2975.5,1.5374]
[1766354344223,1.61741248,2975.9,2975.4,1.01149769]
[1766354344415,1.61741248,2975.9,2975.4,2.54889769]
[1766354345320,1.1613,2975.9,2975.4,2.54889769]
[1766354351947,1.1613,2975.9,2975.4,2.55359769]
[1766354352851,1.1613,2975.9,2975.4,2.20169769]
[1766354353064,1.1613,2975.9,2975.4,2.55359769]
[1766354353853,1.1613,2975.9,2975.5,1.5507]
[1766354354219,0.001,2975.9,2975.5,1.5507]
[1766354354656,0.001,2975.9,2975.6,0.3519]
[1766354355524,0.001,2975.9,2975.7,0.3519]
[1766354357367,0.001,2975.9,2975.6,0.13459153]
[1766354358028,1.1727,2975.9,2975.6,0.13459153]
[1766354358864,0.001,2975.9,2975.6,0.13459153]
[1766354362569,0.001,2975.9,2975.6,1.68529153]
[1766354363167,0.001,2976.3,2976.0,1.1988]
[1766354363340,1.1727,2976.3,2975.8,1.5507]
[1766354363545,1.2124,2976.3,2975.8,1.5507]
[1766354363744,1.2124,2976.3,2975.9,1.00928372]
[1766354365968,1.1727,2976.3,2975.9,1.00928372]
[1766354369779,0.001,2976.3,2975.9,2.51858372]
[1766354369951,0.001,2976.3,2976.0,0.3636]
[1766354370150,0.001,2976.3,2975.9,2.15498372]
[1766354370980,0.001,2976.3,2975.9,1.00928372]
[1766354371161,1.1793,2976.3,2975.9,1.00928372]
[1766354373381,1.1793,2976.3,2975.8,0.3636]
[1766354373879,1.1793,2976.3,2975.8,1.37288712]
[1766354374081,1.1793,2976.3,2975.8,2.51818924]
[1766354375275,0.001,2976.3,2975.8,2.15458924]
[1766354375469,0.001,2976.3,2975.9,0.3635]